[Event "Late-Titled-Tuesday-Blitz-October-10-2023"]
[Site "Chess.com"]
[Date "2023.10.10"]
[Round "11"]
[White "nihalsarin"]
[Black "iturrizaga"]
[Result "0-1"]
[WhiteElo "3118"]
[BlackElo "3044"]
[TimeControl "180+1"]
[EndTime "16:01:28 PDT"]
[Termination "iturrizaga won by resignation"]

1. Nf3 {[%clk 0:03:00.9]} 1... c5 {[%clk 0:02:59.8]} 2. b3 {[%clk 0:03:01]} 2...
Nc6 {[%clk 0:02:57.9]} 3. Bb2 {[%clk 0:03:01.7]} 3... d6 {[%clk 0:02:58.5]} 4.
e3 {[%clk 0:03:01.5]} 4... e5 {[%clk 0:02:58]} 5. d4 {[%clk 0:03:02.2]} 5...
cxd4 {[%clk 0:02:33.3]} 6. exd4 {[%clk 0:03:03.1]} 6... e4 {[%clk 0:02:34]} 7.
Nfd2 {[%clk 0:03:03.4]} 7... d5 {[%clk 0:02:34.6]} 8. c4 {[%clk 0:03:03.4]} 8...
Nf6 {[%clk 0:02:31.7]} 9. Nc3 {[%clk 0:03:00.2]} 9... Bb4 {[%clk 0:02:22.5]} 10.
a3 {[%clk 0:02:47]} 10... Bxc3 {[%clk 0:02:19.9]} 11. Bxc3 {[%clk 0:02:47.9]}
11... O-O {[%clk 0:02:20.5]} 12. Be2 {[%clk 0:02:48.6]} 12... Re8 {[%clk
0:02:13.9]} 13. O-O {[%clk 0:02:44.2]} 13... Bf5 {[%clk 0:02:13.5]} 14. Bb2
{[%clk 0:02:39.1]} 14... Bg6 {[%clk 0:02:09.1]} 15. Re1 {[%clk 0:02:19]} 15...
Rc8 {[%clk 0:02:01.6]} 16. Nf1 {[%clk 0:02:17.4]} 16... Qd7 {[%clk 0:02:01.2]}
17. Ne3 {[%clk 0:02:14.6]} 17... Ne7 {[%clk 0:01:59]} 18. Qd2 {[%clk 0:02:10.8]}
18... Nh5 {[%clk 0:01:45.2]} 19. g3 {[%clk 0:01:47.3]} 19... Nf6 {[%clk
0:01:43.6]} 20. a4 {[%clk 0:01:47.2]} 20... h5 {[%clk 0:01:39.2]} 21. Bf1 {[%clk
0:01:41.2]} 21... h4 {[%clk 0:01:36.8]} 22. Ba3 {[%clk 0:01:41.5]} 22... Nc6
{[%clk 0:01:17.4]} 23. Bb2 {[%clk 0:01:27.9]} 23... Ne7 {[%clk 0:01:13.9]} 24.
Rac1 {[%clk 0:01:10.3]} 24... Rcd8 {[%clk 0:01:12.5]} 25. cxd5 {[%clk
0:01:06.2]} 25... a6 {[%clk 0:01:03.2]} 26. Nc4 {[%clk 0:01:06.2]} 26... Nexd5
{[%clk 0:00:59.6]} 27. Ne5 {[%clk 0:01:06.3]} 27... Qf5 {[%clk 0:00:58.4]} 28.
Bg2 {[%clk 0:00:50.2]} 28... hxg3 {[%clk 0:00:57.7]} 29. hxg3 {[%clk 0:00:51.1]}
29... Bh5 {[%clk 0:00:53.7]} 30. Rc5 {[%clk 0:00:38.9]} 30... b6 {[%clk
0:00:53.9]} 31. Rcc1 {[%clk 0:00:34.9]} 31... a5 {[%clk 0:00:47.8]} 32. Nc6
{[%clk 0:00:24.9]} 32... Rc8 {[%clk 0:00:43.9]} 33. Ne5 {[%clk 0:00:25.6]} 33...
Rcd8 {[%clk 0:00:42.1]} 34. Bf1 {[%clk 0:00:22.6]} 34... Bf3 {[%clk 0:00:38.1]}
35. Nxf3 {[%clk 0:00:19]} 35... Qxf3 {[%clk 0:00:38.4]} 36. Qd1 {[%clk
0:00:16.9]} 36... Qf5 {[%clk 0:00:35.3]} 37. Qd2 {[%clk 0:00:11.4]} 37... Re6
{[%clk 0:00:35.3]} 38. Bg2 {[%clk 0:00:11.4]} 38... Rde8 {[%clk 0:00:28.3]} 39.
Qe2 {[%clk 0:00:11.9]} 39... Ng4 {[%clk 0:00:23.6]} 40. Bh3 {[%clk 0:00:09.8]}
40... Rg6 {[%clk 0:00:24.2]} 41. f3 {[%clk 0:00:08.5]} 41... Nf4 {[%clk
0:00:12.9]} 42. gxf4 {[%clk 0:00:05.1]} 42... Ne5+ {[%clk 0:00:13.3]} 43. Kh2
{[%clk 0:00:04.8]} 43... Qxf4+ {[%clk 0:00:12]} 44. Kh1 {[%clk 0:00:05.4]} 44...
Qh4 {[%clk 0:00:06.4]} 45. Qf1 {[%clk 0:00:03.6]} 45... Nxf3 {[%clk 0:00:05.4]}
46. Re2 {[%clk 0:00:02.6]} 46... Rg3 {[%clk 0:00:05.5]} 47. Rh2 {[%clk
0:00:03.4]} 47... Nxh2 {[%clk 0:00:04.1]} 48. Kxh2 {[%clk 0:00:04.3]} 48... Qg5
{[%clk 0:00:04]} 49. Rc7 {[%clk 0:00:04.1]} 49... Rf3 {[%clk 0:00:04.1]} 50. Bc1
{[%clk 0:00:03.2]} 50... Qg3+ {[%clk 0:00:02.7]} 51. Kh1 {[%clk 0:00:03.8]}
51... Rxf1+ {[%clk 0:00:03.4]} 52. Bxf1 {[%clk 0:00:04.6]} 52... Qxc7 {[%clk
0:00:04.1]} 0-1

[Event "Late-Titled-Tuesday-Blitz-October-10-2023"]
[Site "Chess.com"]
[Date "2023.10.10"]
[Round "11"]
[White "blueryder"]
[Black "Bala-Afiada"]
[Result "1-0"]
[WhiteElo "2175"]
[BlackElo "1943"]
[TimeControl "180+1"]
[EndTime "16:01:31 PDT"]
[Termination "blueryder won by resignation"]

1. e4 {[%clk 0:03:00.9]} 1... c5 {[%clk 0:02:52.8]} 2. Nc3 {[%clk 0:02:59.8]}
2... Nc6 {[%clk 0:02:52.4]} 3. f4 {[%clk 0:02:59.7]} 3... d6 {[%clk 0:02:50.3]}
4. Nf3 {[%clk 0:02:59.7]} 4... g6 {[%clk 0:02:50.9]} 5. Bc4 {[%clk 0:02:58.7]}
5... Bg7 {[%clk 0:02:51.2]} 6. d3 {[%clk 0:02:57.9]} 6... e6 {[%clk 0:02:51.9]}
7. Bb3 {[%clk 0:02:57.2]} 7... Nge7 {[%clk 0:02:52.4]} 8. O-O {[%clk 0:02:57]}
8... Nd4 {[%clk 0:02:53]} 9. Nxd4 {[%clk 0:02:55.6]} 9... Bxd4+ {[%clk
0:02:50.3]} 10. Kh1 {[%clk 0:02:54.8]} 10... Nc6 {[%clk 0:02:49.7]} 11. Ne2
{[%clk 0:02:54.6]} 11... Bg7 {[%clk 0:02:49.4]} 12. c3 {[%clk 0:02:53.1]} 12...
O-O {[%clk 0:02:47.9]} 13. Qe1 {[%clk 0:02:52.8]} 13... b5 {[%clk 0:02:46.7]}
14. Bc2 {[%clk 0:02:51.2]} 14... f5 {[%clk 0:02:44.9]} 15. Ng1 {[%clk
0:02:47.2]} 15... Bb7 {[%clk 0:02:43.6]} 16. Nf3 {[%clk 0:02:47]} 16... a5
{[%clk 0:02:35.3]} 17. Ng5 {[%clk 0:02:46.7]} 17... Qe7 {[%clk 0:02:29.2]} 18.
exf5 {[%clk 0:02:42.6]} 18... exf5 {[%clk 0:02:23.5]} 19. Qg3 {[%clk 0:02:30.8]}
19... Rae8 {[%clk 0:02:10.8]} 20. Bb3+ {[%clk 0:02:26.9]} 20... c4 {[%clk
0:01:47.2]} 21. dxc4 {[%clk 0:02:23.1]} 21... a4 {[%clk 0:01:47.1]} 22. Bc2
{[%clk 0:02:10.4]} 22... bxc4 {[%clk 0:01:39.8]} 23. Bd2 {[%clk 0:01:59.5]}
23... Qe2 {[%clk 0:01:34.5]} 24. Rad1 {[%clk 0:01:58.6]} 24... Qg4 {[%clk
0:00:54.6]} 25. Bxa4 {[%clk 0:01:48.7]} 25... Qxg3 {[%clk 0:00:44]} 26. hxg3
{[%clk 0:01:49.6]} 26... Re2 {[%clk 0:00:44.3]} 27. Nf3 {[%clk 0:01:37.1]} 27...
Ra8 {[%clk 0:00:35]} 28. Bb5 {[%clk 0:01:35.3]} 28... d5 {[%clk 0:00:30.2]} 29.
a3 {[%clk 0:01:30.3]} 29... Ra5 {[%clk 0:00:26.9]} 30. a4 {[%clk 0:01:21.2]}
30... Ra8 {[%clk 0:00:17]} 31. Ng1 {[%clk 0:01:12.7]} 31... Re7 {[%clk
0:00:14.7]} 32. Rde1 {[%clk 0:01:09.5]} 32... Rae8 {[%clk 0:00:14.3]} 33. Rxe7
{[%clk 0:01:04.8]} 33... Rxe7 {[%clk 0:00:15.2]} 34. Nf3 {[%clk 0:01:02.6]}
34... Na7 {[%clk 0:00:15]} 35. Re1 {[%clk 0:00:51.7]} 35... Rxe1+ {[%clk
0:00:13.7]} 36. Bxe1 {[%clk 0:00:51.9]} 36... Nxb5 {[%clk 0:00:14.6]} 37. axb5
{[%clk 0:00:51.4]} 37... Bf8 {[%clk 0:00:15.5]} 38. Bf2 {[%clk 0:00:50.7]} 38...
Bd6 {[%clk 0:00:15.2]} 39. Nd4 {[%clk 0:00:50.2]} 39... Kf7 {[%clk 0:00:14.1]}
40. Kg1 {[%clk 0:00:50.3]} 40... Ke7 {[%clk 0:00:14.5]} 41. Kf1 {[%clk
0:00:50.5]} 41... Kd7 {[%clk 0:00:15]} 42. Ke2 {[%clk 0:00:50.7]} 42... Bc5
{[%clk 0:00:15.1]} 43. Be3 {[%clk 0:00:44.5]} 43... Kd6 {[%clk 0:00:14.2]} 44.
Kf3 {[%clk 0:00:42.4]} 44... Ba8 {[%clk 0:00:08.2]} 45. g4 {[%clk 0:00:41]}
45... Bb7 {[%clk 0:00:08.7]} 46. gxf5 {[%clk 0:00:40.4]} 46... Bxd4 {[%clk
0:00:09.2]} 47. Bxd4 {[%clk 0:00:37.8]} 47... gxf5 {[%clk 0:00:10.1]} 48. g4
{[%clk 0:00:33.5]} 48... Ke6 {[%clk 0:00:07.1]} 49. Be5 {[%clk 0:00:21.4]} 49...
Ba8 {[%clk 0:00:05.1]} 50. g5 {[%clk 0:00:17.7]} 50... Bb7 {[%clk 0:00:05]} 51.
Ke3 {[%clk 0:00:17.8]} 51... Ba8 {[%clk 0:00:03.3]} 52. Kd4 {[%clk 0:00:18.1]}
52... Bb7 {[%clk 0:00:03.9]} 53. Kc5 {[%clk 0:00:18.1]} 53... Ba8 {[%clk
0:00:02]} 54. Kb6 {[%clk 0:00:16.1]} 54... Kd7 {[%clk 0:00:02.5]} 55. Ka7 {[%clk
0:00:16]} 55... Bc6 {[%clk 0:00:02.3]} 56. bxc6+ {[%clk 0:00:15.4]} 56... Kxc6
{[%clk 0:00:03.2]} 57. Ka6 {[%clk 0:00:15]} 57... Kc5 {[%clk 0:00:03.3]} 58. Ka5
{[%clk 0:00:14.2]} 58... Kc6 {[%clk 0:00:03.4]} 59. Kb4 {[%clk 0:00:14]} 59...
Kb6 {[%clk 0:00:03.8]} 60. b3 {[%clk 0:00:14.3]} 60... Kc6 {[%clk 0:00:04.7]}
61. bxc4 {[%clk 0:00:14.4]} 61... dxc4 {[%clk 0:00:05.6]} 62. Kxc4 {[%clk
0:00:14.8]} 1-0

[Event "Late-Titled-Tuesday-Blitz-October-10-2023"]
[Site "Chess.com"]
[Date "2023.10.10"]
[Round "11"]
[White "Grischuk"]
[Black "alexrustemov"]
[Result "1-0"]
[WhiteElo "2982"]
[BlackElo "2824"]
[TimeControl "180+1"]
[EndTime "16:01:43 PDT"]
[Termination "Grischuk won on time"]

1. d4 {[%clk 0:02:54.7]} 1... d5 {[%clk 0:02:59.3]} 2. Nf3 {[%clk 0:02:54.1]}
2... Nf6 {[%clk 0:02:59]} 3. Bg5 {[%clk 0:02:54.2]} 3... Ne4 {[%clk 0:02:58]} 4.
Bh4 {[%clk 0:02:54.4]} 4... c5 {[%clk 0:02:58]} 5. e3 {[%clk 0:02:54.6]} 5...
Nc6 {[%clk 0:02:56.5]} 6. Nbd2 {[%clk 0:02:54.2]} 6... Bf5 {[%clk 0:02:55.5]} 7.
dxc5 {[%clk 0:02:53.4]} 7... Nxc5 {[%clk 0:02:53.3]} 8. Nd4 {[%clk 0:02:53.6]}
8... Bd7 {[%clk 0:02:39.5]} 9. c4 {[%clk 0:02:52.5]} 9... dxc4 {[%clk
0:02:28.3]} 10. Bxc4 {[%clk 0:02:44.8]} 10... Ne5 {[%clk 0:02:22.4]} 11. O-O
{[%clk 0:02:44.6]} 11... Nxc4 {[%clk 0:02:17.7]} 12. Nxc4 {[%clk 0:02:44.3]}
12... Qb8 {[%clk 0:01:08.3]} 13. Bg3 {[%clk 0:02:26.4]} 13... Qd8 {[%clk
0:01:06.6]} 14. Qf3 {[%clk 0:02:25.2]} 14... e6 {[%clk 0:00:58.1]} 15. Nd6+
{[%clk 0:02:17]} 15... Bxd6 {[%clk 0:00:57.4]} 16. Bxd6 {[%clk 0:02:17.9]} 16...
Rc8 {[%clk 0:00:54.1]} 17. Qg3 {[%clk 0:01:32.4]} 17... Qf6 {[%clk 0:00:46.9]}
18. f3 {[%clk 0:01:31.5]} 18... Qg6 {[%clk 0:00:37.9]} 19. Qh4 {[%clk
0:01:13.4]} 19... f6 {[%clk 0:00:36.2]} 20. e4 {[%clk 0:01:00.4]} 20... Kf7
{[%clk 0:00:34.3]} 21. Rfd1 {[%clk 0:00:57.6]} 21... Rhd8 {[%clk 0:00:30.5]} 22.
Ne2 {[%clk 0:00:57.7]} 22... b6 {[%clk 0:00:27.1]} 23. Bxc5 {[%clk 0:00:40.8]}
23... bxc5 {[%clk 0:00:26.8]} 24. Nf4 {[%clk 0:00:38.9]} 24... Qg5 {[%clk
0:00:24]} 25. Qxg5 {[%clk 0:00:39.3]} 25... fxg5 {[%clk 0:00:24.7]} 26. Ne2
{[%clk 0:00:32.1]} 26... Bb5 {[%clk 0:00:21.7]} 27. Nc3 {[%clk 0:00:32]} 27...
Bd3 {[%clk 0:00:21.4]} 28. Kf2 {[%clk 0:00:32.5]} 28... c4 {[%clk 0:00:16.9]}
29. Ke3 {[%clk 0:00:32.5]} 29... Rb8 {[%clk 0:00:17]} 30. Rd2 {[%clk 0:00:29.9]}
30... Rd7 {[%clk 0:00:12.6]} 31. Rad1 {[%clk 0:00:26.6]} 31... Rdb7 {[%clk
0:00:12.5]} 32. b3 {[%clk 0:00:24.2]} 32... Ke7 {[%clk 0:00:12.6]} 33. Na4
{[%clk 0:00:20.3]} 33... Rc7 {[%clk 0:00:10.9]} 34. Nb2 {[%clk 0:00:12.9]} 34...
c3 {[%clk 0:00:06.1]} 35. Rxd3 {[%clk 0:00:13.4]} 35... cxb2 {[%clk 0:00:06.3]}
36. Rb1 {[%clk 0:00:13]} 36... Rc2 {[%clk 0:00:05.9]} 37. Rd2 {[%clk 0:00:13]}
37... Rbc8 {[%clk 0:00:06.4]} 38. Rxb2 {[%clk 0:00:12.9]} 38... Rxb2 {[%clk
0:00:04.6]} 39. Rxb2 {[%clk 0:00:12.8]} 39... e5 {[%clk 0:00:05.2]} 40. Kd2
{[%clk 0:00:12.1]} 40... Rd8+ {[%clk 0:00:05.1]} 41. Ke2 {[%clk 0:00:12.1]}
41... h5 {[%clk 0:00:04.9]} 42. Rc2 {[%clk 0:00:11.4]} 42... Rd7 {[%clk
0:00:04.2]} 43. Rc5 {[%clk 0:00:11.1]} 43... Ke6 {[%clk 0:00:04.2]} 44. Rc6+
{[%clk 0:00:11.5]} 44... Ke7 {[%clk 0:00:04.6]} 45. Rg6 {[%clk 0:00:11.5]} 45...
Kf7 {[%clk 0:00:03.7]} 46. Rxg5 {[%clk 0:00:12]} 46... Kf6 {[%clk 0:00:04.3]}
47. Rf5+ {[%clk 0:00:11.4]} 47... Ke6 {[%clk 0:00:03.6]} 48. Rxh5 {[%clk
0:00:11.6]} 48... Rc7 {[%clk 0:00:04.2]} 49. Kd3 {[%clk 0:00:10.4]} 49... Rd7+
{[%clk 0:00:04.6]} 50. Ke3 {[%clk 0:00:10.9]} 50... Rc7 {[%clk 0:00:05]} 51. Rg5
{[%clk 0:00:10.2]} 51... Kf6 {[%clk 0:00:05.3]} 52. Rf5+ {[%clk 0:00:09.5]}
52... Ke6 {[%clk 0:00:05.6]} 53. h4 {[%clk 0:00:03.4]} 53... Rc2 {[%clk
0:00:05.4]} 54. g4 {[%clk 0:00:03.3]} 54... Rxa2 {[%clk 0:00:05.4]} 55. Kd3
{[%clk 0:00:03.7]} 55... a5 {[%clk 0:00:03.4]} 56. h5 {[%clk 0:00:03.4]} 56...
Ra3 {[%clk 0:00:02]} 57. Kc2 {[%clk 0:00:03.6]} 57... Ra2+ {[%clk 0:00:02.1]}
58. Kc3 {[%clk 0:00:04]} 58... Ra3 {[%clk 0:00:02.3]} 59. Kb2 {[%clk 0:00:04.1]}
1-0

[Event "Late-Titled-Tuesday-Blitz-October-10-2023"]
[Site "Chess.com"]
[Date "2023.10.10"]
[Round "11"]
[White "The_Straightforward_Rook"]
[Black "ItalianMachine"]
[Result "1-0"]
[WhiteElo "2564"]
[BlackElo "2429"]
[TimeControl "180+1"]
[EndTime "16:01:43 PDT"]
[Termination "The_Straightforward_Rook won by checkmate"]

1. d4 {[%clk 0:03:00.9]} 1... e6 {[%clk 0:02:52.3]} 2. c4 {[%clk 0:02:58.1]}
2... Nf6 {[%clk 0:02:50.8]} 3. Nf3 {[%clk 0:02:57.8]} 3... Bb4+ {[%clk
0:02:50.8]} 4. Nbd2 {[%clk 0:02:57.5]} 4... c5 {[%clk 0:02:49.7]} 5. dxc5 {[%clk
0:02:55.2]} 5... Bxc5 {[%clk 0:02:49.1]} 6. e3 {[%clk 0:02:51.5]} 6... O-O
{[%clk 0:02:46.6]} 7. Bd3 {[%clk 0:02:51.2]} 7... d5 {[%clk 0:02:44.2]} 8. O-O
{[%clk 0:02:47.4]} 8... Nc6 {[%clk 0:02:43.8]} 9. a3 {[%clk 0:02:47.1]} 9... a5
{[%clk 0:02:42.1]} 10. Qe2 {[%clk 0:02:40.9]} 10... e5 {[%clk 0:01:43.5]} 11.
cxd5 {[%clk 0:02:32.9]} 11... Qxd5 {[%clk 0:01:44.4]} 12. Bc4 {[%clk 0:02:10.6]}
12... Qd8 {[%clk 0:01:40]} 13. Rd1 {[%clk 0:02:09.7]} 13... Qe7 {[%clk 0:01:31]}
14. h3 {[%clk 0:02:02.1]} 14... e4 {[%clk 0:01:28.5]} 15. Nh2 {[%clk 0:02:01.3]}
15... Ne5 {[%clk 0:01:26]} 16. b3 {[%clk 0:01:57.1]} 16... Nxc4 {[%clk
0:00:46.9]} 17. Nxc4 {[%clk 0:01:58]} 17... Be6 {[%clk 0:00:41.2]} 18. Bb2
{[%clk 0:01:57.9]} 18... b5 {[%clk 0:00:40.9]} 19. Nxa5 {[%clk 0:01:35.4]} 19...
Rxa5 {[%clk 0:00:27.8]} 20. b4 {[%clk 0:01:35.3]} 20... Bxb4 {[%clk 0:00:28.3]}
21. axb4 {[%clk 0:01:35.2]} 21... Rxa1 {[%clk 0:00:29.2]} 22. Bxa1 {[%clk
0:01:30.4]} 22... Qxb4 {[%clk 0:00:24.1]} 23. Bxf6 {[%clk 0:01:08.3]} 23... gxf6
{[%clk 0:00:25]} 24. Ng4 {[%clk 0:01:08.6]} 24... Kg7 {[%clk 0:00:23.7]} 25. Rd4
{[%clk 0:00:59.2]} 25... Qb1+ {[%clk 0:00:22]} 26. Kh2 {[%clk 0:00:58.2]} 26...
h5 {[%clk 0:00:16.5]} 27. Rd1 {[%clk 0:00:50.2]} 27... Qb4 {[%clk 0:00:14.3]}
28. Nxf6 {[%clk 0:00:46.3]} 28... Kxf6 {[%clk 0:00:14]} 29. Qxh5 {[%clk
0:00:47.2]} 29... Ke7 {[%clk 0:00:09.1]} 30. Rd4 {[%clk 0:00:34.2]} 30... Qa3
{[%clk 0:00:06.2]} 31. Qh4+ {[%clk 0:00:28.8]} 31... f6 {[%clk 0:00:05.8]} 32.
Qh7+ {[%clk 0:00:28.9]} 32... Rf7 {[%clk 0:00:05.8]} 33. Qxe4 {[%clk 0:00:28.3]}
33... Qc5 {[%clk 0:00:06.3]} 34. Qb7+ {[%clk 0:00:25.2]} 34... Kf8 {[%clk
0:00:06.7]} 35. Qb8+ {[%clk 0:00:21.4]} 35... Kg7 {[%clk 0:00:07]} 36. Qg3+
{[%clk 0:00:20.1]} 36... Qg5 {[%clk 0:00:07.2]} 37. Qd6 {[%clk 0:00:13.8]} 37...
Qe5+ {[%clk 0:00:07.3]} 38. Qxe5 {[%clk 0:00:13.9]} 38... fxe5 {[%clk
0:00:08.2]} 39. Rd6 {[%clk 0:00:11.7]} 39... Kf6 {[%clk 0:00:08.3]} 40. Rb6
{[%clk 0:00:11.6]} 40... Rc7 {[%clk 0:00:06.9]} 41. Rxb5 {[%clk 0:00:11.4]}
41... Rc2 {[%clk 0:00:07.8]} 42. Kg3 {[%clk 0:00:11.6]} 42... Bc4 {[%clk
0:00:07.5]} 43. Rb6+ {[%clk 0:00:11.4]} 43... Be6 {[%clk 0:00:08.4]} 44. h4
{[%clk 0:00:11.1]} 44... Rc7 {[%clk 0:00:08.5]} 45. Ra6 {[%clk 0:00:10.5]} 45...
Rg7+ {[%clk 0:00:09.4]} 46. Kh2 {[%clk 0:00:10]} 46... Rf7 {[%clk 0:00:10.3]}
47. g3 {[%clk 0:00:10]} 47... Rh7 {[%clk 0:00:10.8]} 48. Kg2 {[%clk 0:00:10.2]}
48... Rf7 {[%clk 0:00:11.7]} 49. f3 {[%clk 0:00:10.4]} 49... Ke7 {[%clk
0:00:12.1]} 50. Ra7+ {[%clk 0:00:09.1]} 50... Kf6 {[%clk 0:00:12.5]} 51. Rxf7+
{[%clk 0:00:07.3]} 51... Kxf7 {[%clk 0:00:13.4]} 52. g4 {[%clk 0:00:07.7]} 52...
Kf6 {[%clk 0:00:14.3]} 53. Kg3 {[%clk 0:00:08.2]} 53... Bd5 {[%clk 0:00:14.2]}
54. e4 {[%clk 0:00:06.8]} 54... Be6 {[%clk 0:00:14.4]} 55. f4 {[%clk 0:00:06.4]}
55... exf4+ {[%clk 0:00:14.5]} 56. Kxf4 {[%clk 0:00:07.3]} 56... Bf7 {[%clk
0:00:15]} 57. e5+ {[%clk 0:00:07.6]} 57... Ke6 {[%clk 0:00:15.4]} 58. h5 {[%clk
0:00:06.4]} 58... Bg8 {[%clk 0:00:15.4]} 59. g5 {[%clk 0:00:06.1]} 59... Kf7
{[%clk 0:00:16.3]} 60. Kf5 {[%clk 0:00:05.7]} 60... Kg7 {[%clk 0:00:16.2]} 61.
e6 {[%clk 0:00:05.3]} 61... Bh7+ {[%clk 0:00:15]} 62. Ke5 {[%clk 0:00:04.8]}
62... Bg8 {[%clk 0:00:15.9]} 63. Kd6 {[%clk 0:00:04.9]} 63... Kf8 {[%clk
0:00:14.7]} 64. e7+ {[%clk 0:00:03.3]} 64... Ke8 {[%clk 0:00:15.2]} 65. g6
{[%clk 0:00:02]} 65... Ba2 {[%clk 0:00:15.1]} 66. h6 {[%clk 0:00:02.3]} 66...
Bb1 {[%clk 0:00:15.6]} 67. h7 {[%clk 0:00:02.7]} 67... Ba2 {[%clk 0:00:14.4]}
68. h8=Q+ {[%clk 0:00:02.6]} 68... Bg8 {[%clk 0:00:15.3]} 69. Qxg8# {[%clk
0:00:02.6]} 1-0

[Event "Late-Titled-Tuesday-Blitz-October-10-2023"]
[Site "Chess.com"]
[Date "2023.10.10"]
[Round "11"]
[White "rychessmaster1"]
[Black "Witaliss"]
[Result "1-0"]
[WhiteElo "2698"]
[BlackElo "2562"]
[TimeControl "180+1"]
[EndTime "16:01:47 PDT"]
[Termination "rychessmaster1 won by resignation"]

1. d4 {[%clk 0:03:00.9]} 1... Nf6 {[%clk 0:02:59]} 2. c4 {[%clk 0:03:01.1]} 2...
c6 {[%clk 0:02:58.7]} 3. Nf3 {[%clk 0:02:57.8]} 3... d5 {[%clk 0:02:58.5]} 4.
Nc3 {[%clk 0:02:58]} 4... dxc4 {[%clk 0:02:57.6]} 5. a4 {[%clk 0:02:57.8]} 5...
Bg4 {[%clk 0:02:57.2]} 6. Ne5 {[%clk 0:02:51.5]} 6... Bh5 {[%clk 0:02:57]} 7. f3
{[%clk 0:02:45.2]} 7... Nfd7 {[%clk 0:02:56.1]} 8. Nxc4 {[%clk 0:02:44.4]} 8...
e5 {[%clk 0:02:56.2]} 9. Nxe5 {[%clk 0:02:36.1]} 9... Nxe5 {[%clk 0:02:55.5]}
10. dxe5 {[%clk 0:02:37]} 10... Nd7 {[%clk 0:02:53.3]} 11. e6 {[%clk 0:02:26.2]}
11... fxe6 {[%clk 0:02:52.4]} 12. g3 {[%clk 0:02:25.9]} 12... Bb4 {[%clk
0:02:40.5]} 13. Bh3 {[%clk 0:02:22.6]} 13... Qe7 {[%clk 0:02:38.5]} 14. Be3
{[%clk 0:02:14.2]} 14... a5 {[%clk 0:02:31.7]} 15. O-O {[%clk 0:02:08.2]} 15...
O-O {[%clk 0:02:26.8]} 16. Ne4 {[%clk 0:02:03]} 16... Nf6 {[%clk 0:02:17]} 17.
Nxf6+ {[%clk 0:01:47.8]} 17... Qxf6 {[%clk 0:02:13.1]} 18. Qb3 {[%clk
0:01:46.1]} 18... Bf7 {[%clk 0:02:11.6]} 19. Rad1 {[%clk 0:01:43.9]} 19... e5
{[%clk 0:02:05.2]} 20. Qc2 {[%clk 0:01:44.3]} 20... Bd5 {[%clk 0:02:00.9]} 21.
Bc5 {[%clk 0:01:41.6]} 21... Rfd8 {[%clk 0:01:48.9]} 22. e4 {[%clk 0:01:28.2]}
22... Be6 {[%clk 0:01:48.7]} 23. Bxe6+ {[%clk 0:01:26.4]} 23... Qxe6 {[%clk
0:01:48.6]} 24. Bxb4 {[%clk 0:01:23.2]} 24... axb4 {[%clk 0:01:47.9]} 25. Rxd8+
{[%clk 0:01:23.9]} 25... Rxd8 {[%clk 0:01:46.7]} 26. Rd1 {[%clk 0:01:24.6]}
26... Rd4 {[%clk 0:01:42.5]} 27. Rxd4 {[%clk 0:01:08.2]} 27... exd4 {[%clk
0:01:42.4]} 28. f4 {[%clk 0:01:04.6]} 28... b3 {[%clk 0:01:33.4]} 29. Qd3 {[%clk
0:01:03.7]} 29... c5 {[%clk 0:01:31.9]} 30. a5 {[%clk 0:00:58.3]} 30... Kf8
{[%clk 0:01:21.1]} 31. Kg2 {[%clk 0:00:46.2]} 31... Ke7 {[%clk 0:01:18.7]} 32.
Kf3 {[%clk 0:00:41.2]} 32... Qa6 {[%clk 0:01:07.6]} 33. Qxb3 {[%clk 0:00:30.7]}
33... Qf1+ {[%clk 0:01:04.1]} 34. Kg4 {[%clk 0:00:31.4]} 34... Qe2+ {[%clk
0:01:03]} 35. Kh3 {[%clk 0:00:22.7]} 35... Qxe4 {[%clk 0:01:02.2]} 36. Qb6
{[%clk 0:00:16.3]} 36... Qd5 {[%clk 0:00:59.4]} 37. b4 {[%clk 0:00:13.9]} 37...
c4 {[%clk 0:00:57.9]} 38. b5 {[%clk 0:00:14.2]} 38... d3 {[%clk 0:00:57.9]} 39.
a6 {[%clk 0:00:14.7]} 39... bxa6 {[%clk 0:00:57.7]} 40. bxa6 {[%clk 0:00:15.6]}
40... d2 {[%clk 0:00:57.5]} 41. Qc7+ {[%clk 0:00:09.6]} 41... Kf6 {[%clk
0:00:49.1]} 42. Qb6+ {[%clk 0:00:06.9]} 42... Ke7 {[%clk 0:00:45.6]} 43. Qc7+
{[%clk 0:00:06.9]} 43... Qd7+ {[%clk 0:00:45.5]} 44. Qxd7+ {[%clk 0:00:07.4]}
44... Kxd7 {[%clk 0:00:45.6]} 45. a7 {[%clk 0:00:08.3]} 45... d1=Q {[%clk
0:00:45.4]} 46. a8=Q {[%clk 0:00:09.2]} 46... Qf1+ {[%clk 0:00:42.3]} 47. Kh4
{[%clk 0:00:09.9]} 47... Qd3 {[%clk 0:00:40.8]} 48. Qb7+ {[%clk 0:00:09.8]}
48... Kd6 {[%clk 0:00:40.6]} 49. Qxg7 {[%clk 0:00:07.3]} 49... c3 {[%clk
0:00:40.2]} 50. Qh6+ {[%clk 0:00:05.6]} 50... Kc5 {[%clk 0:00:38.3]} 51. Qf8+
{[%clk 0:00:04.9]} 51... Kc4 {[%clk 0:00:37.5]} 52. Qc8+ {[%clk 0:00:04.4]}
52... Kb3 {[%clk 0:00:37.1]} 53. f5 {[%clk 0:00:04.5]} 53... c2 {[%clk 0:00:35]}
54. f6 {[%clk 0:00:05.1]} 54... Qc4+ {[%clk 0:00:29.9]} 55. Qxc4+ {[%clk
0:00:05.1]} 55... Kxc4 {[%clk 0:00:30.2]} 56. f7 {[%clk 0:00:05.7]} 56... c1=Q
{[%clk 0:00:30.1]} 57. f8=Q {[%clk 0:00:05.8]} 57... Qd2 {[%clk 0:00:26.9]} 58.
Qf4+ {[%clk 0:00:05.5]} 58... Qxf4+ {[%clk 0:00:26]} 59. gxf4 {[%clk 0:00:06.4]}
59... Kd5 {[%clk 0:00:25.1]} 60. Kg5 {[%clk 0:00:05.3]} 60... Ke6 {[%clk
0:00:24.6]} 61. h4 {[%clk 0:00:04.3]} 61... Kf7 {[%clk 0:00:24.2]} 62. Kf5
{[%clk 0:00:04]} 62... h6 {[%clk 0:00:19.1]} 63. h5 {[%clk 0:00:03.4]} 63... Kg7
{[%clk 0:00:17.9]} 64. Ke6 {[%clk 0:00:04.1]} 64... Kf8 {[%clk 0:00:17.5]} 65.
Kf6 {[%clk 0:00:05]} 65... Kg8 {[%clk 0:00:17.2]} 66. Kg6 {[%clk 0:00:05.9]}
66... Kf8 {[%clk 0:00:17.1]} 67. Kxh6 {[%clk 0:00:06.8]} 67... Kf7 {[%clk
0:00:17.5]} 68. Kg5 {[%clk 0:00:07.4]} 68... Kg7 {[%clk 0:00:17.6]} 69. f5
{[%clk 0:00:08.3]} 1-0